bitfinex/quotes_BTCUSD_20220304
["timestamp","ask_amount","ask_price","bid_price","bid_amount"]
[1646352000553,0.40870367,42499.0,42489.0,0.09733558]
[1646352000741,0.70834102,42500.0,42489.0,0.09733558]
[1646352000941,0.70834102,42500.0,42489.0,0.09433558]
[1646352001143,0.55516994,42500.0,42489.0,0.09433558]
[1646352001341,0.359084,42499.0,42489.0,0.09433558]
[1646352001738,0.51225508,42499.0,42489.0,0.09733558]
[1646352001988,0.60662301,42499.0,42489.0,0.09733558]
[1646352002288,0.75979409,42499.0,42489.0,0.09733558]
[1646352002489,0.00088091,42494.0,42489.0,0.09733558]
[1646352002888,0.359084,42498.0,42489.0,0.09733558]
[1646352003890,0.00088091,42494.0,42489.0,0.09733558]
[1646352004092,0.40071009,42499.0,42489.0,0.09733558]
[1646352004492,0.24753901,42499.0,42489.0,0.09733558]
[1646352004993,0.359084,42498.0,42489.0,0.09433558]
[1646352005394,0.00088091,42494.0,42489.0,0.35495102]
[1646352005637,0.00088091,42494.0,42489.0,0.0767383]
[1646352005833,0.24753901,42499.0,42489.0,0.0657383]
[1646352006635,0.24753901,42499.0,42489.0,0.33279137]
[1646352007036,0.359084,42500.0,42490.0,0.95]
[1646352007335,0.3,42500.0,42490.0,0.95]
[1646352007837,0.3,42500.0,42490.0,0.953]
[1646352008036,0.27019674,42496.0,42492.0,0.22786302]
[1646352008241,0.3,42500.0,42490.0,0.953]
[1646352008436,0.359084,42498.0,42490.0,0.953]
[1646352008636,0.3,42500.0,42490.0,0.953]
[1646352008835,0.359084,42499.0,42490.0,0.953]
[1646352009035,0.3,42500.0,42490.0,0.95]
[1646352009236,0.23822198,42497.0,42494.0,0.31504748]
[1646352009487,0.30983,42495.0,42494.0,0.31504748]
[1646352009687,0.359084,42499.0,42494.0,0.31504748]
[1646352010693,0.3,42500.0,42494.0,0.31504748]
[1646352010694,0.30983,42497.0,42494.0,0.31504748]
[1646352010899,0.359084,42495.0,42494.0,0.31504748]
[1646352012095,0.15317108,42497.0,42494.0,0.31504748]
[1646352012294,0.003,42500.0,42494.0,0.31504748]
[1646352012495,0.30983,42499.0,42494.0,0.31504748]
[1646352012894,0.30983,42498.0,42495.0,0.21197078]
[1646352013140,0.30983,42498.0,42494.0,0.31504748]
[1646352013739,0.31283,42498.0,42494.0,0.31504748]
[1646352013940,0.26248747,42497.0,42494.0,0.31504748]
[1646352014140,0.359084,42496.0,42494.0,0.15752374]
[1646352014342,0.359084,42496.0,42491.0,0.18571081]
[1646352015040,0.359084,42496.0,42491.0,0.43972507]
[1646352015642,0.359084,42495.0,42491.0,0.35824682]
[1646352015840,0.359084,42494.0,42491.0,0.35824682]
[1646352016046,0.21683623,42501.0,42491.0,0.35824682]
[1646352016242,0.359084,42500.0,42491.0,0.35824682]
[1646352016641,0.25089537,42496.0,42491.0,0.35824682]
[1646352016888,0.359084,42495.0,42491.0,0.35824682]
[1646352017086,0.25089537,42496.0,42491.0,0.35824682]
[1646352017889,0.359084,42494.0,42491.0,0.35824682]
[1646352018087,0.25089537,42496.0,42491.0,0.35824682]
[1646352018888,0.25089537,42496.0,42491.0,0.10423256]
[1646352019091,0.25089537,42496.0,42489.0,0.0627383]
[1646352019092,0.359084,42494.0,42489.0,0.0627383]
[1646352019293,0.406284,42494.0,42489.0,0.0627383]
[1646352019492,0.406284,42494.0,42492.0,0.31504748]
[1646352019891,0.409284,42494.0,42492.0,0.31504748]
[1646352020092,0.529726,42493.0,42492.0,0.31504748]
[1646352021343,0.629726,42493.0,42492.0,0.31504748]
[1646352022939,0.66525226,42493.0,42492.0,0.31504748]
[1646352025789,0.9410023,42493.0,42492.0,0.31504748]
[1646352025990,0.98862091,42493.0,42492.0,0.31504748]
[1646352026193,0.359084,42492.0,42489.0,0.0627383]
[1646352026391,0.30983,42490.0,42481.0,0.2442058]
[1646352026595,1.26838169,42489.0,42481.0,0.2442058]
[1646352026793,0.058918,42486.0,42481.0,0.2442058]
[1646352026990,0.15943134,42484.0,42481.0,0.2442058]
[1646352027191,0.406284,42483.0,42481.0,0.2442058]
[1646352027791,0.52757566,42482.0,42481.0,0.2442058]
[1646352027993,0.57477566,42482.0,42481.0,0.2442058]
[1646352028260,0.67477566,42482.0,42481.0,0.2442058]
[1646352028465,0.67477566,42482.0,42481.0,0.0590458]
[1646352028660,1.05118366,42482.0,42481.0,0.0590458]
[1646352028859,1.05118366,42482.0,42472.0,0.000905]
[1646352028860,1.53025407,42482.0,42472.0,0.000905]
[1646352029059,0.05892921,42475.0,42472.0,0.000905]
[1646352029263,0.35703,42474.0,42472.0,0.000905]
[1646352029462,0.18134477,42473.0,42472.0,0.000905]
[1646352029659,0.54042877,42473.0,42472.0,0.000905]
[1646352029858,0.71578046,42473.0,42472.0,0.000905]
[1646352030260,0.95801894,42473.0,42472.0,0.000905]
[1646352030661,0.95801894,42473.0,42470.0,0.0022]
[1646352030662,0.30983,42472.0,42470.0,0.0022]
[1646352030864,0.52770219,42472.0,42469.0,0.0011]
[1646352031060,0.0472,42471.0,42469.0,0.0011]
[1646352031362,0.359084,42470.0,42469.0,0.0011]
[1646352031760,0.506284,42470.0,42469.0,0.0011]
[1646352032394,0.549484,42470.0,42469.0,0.0011]
[1646352033493,0.849484,42470.0,42469.0,0.0011]
[1646352033695,0.849484,42470.0,42468.0,0.00208279]
[1646352033895,0.70983,42469.0,42468.0,0.00208279]
[1646352034097,0.75703,42469.0,42468.0,0.00208279]
[1646352034295,0.91350366,42469.0,42468.0,0.00208279]
[1646352034500,0.61350366,42469.0,42468.0,0.00208279]
[1646352034701,0.359084,42468.0,42464.0,0.1917361]
[1646352034897,0.359084,42468.0,42461.0,0.56179705]
[1646352035097,0.30983,42466.0,42461.0,0.53864997]
[1646352035297,0.1,42465.0,42461.0,0.32687256]
[1646352035499,0.359084,42464.0,42461.0,0.32687256]
[1646352037138,0.359084,42464.0,42461.0,0.58207254]
[1646352037335,0.21449153,42467.0,42464.0,0.16245192]
[1646352037536,0.309813,42466.0,42464.0,0.16245192]
[1646352038234,0.1,42465.0,42464.0,0.16245192]
[1646352038436,0.409813,42465.0,42464.0,0.16245192]
[1646352039894,0.412813,42465.0,42464.0,0.16245192]
[1646352041298,0.409813,42465.0,42464.0,0.16245192]
[1646352041898,0.412813,42465.0,42464.0,0.16245192]
[1646352042997,0.409813,42465.0,42464.0,0.16245192]
[1646352043844,0.69604884,42465.0,42464.0,0.16245192]
[1646352044443,0.709813,42465.0,42464.0,0.16245192]
[1646352044644,0.409813,42465.0,42464.0,0.16245192]
[1646352045445,0.69335448,42465.0,42464.0,0.16245192]
[1646352045942,0.69735448,42465.0,42464.0,0.16245192]
[1646352046347,0.413813,42465.0,42464.0,0.16245192]
[1646352046985,0.409813,42465.0,42464.0,0.16245192]
[1646352047986,0.003,42470.0,42464.0,0.16245192]
[1646352047987,0.15947435,42470.0,42464.0,0.3268927]
[1646352048387,0.15947435,42470.0,42464.0,0.16245192]
[1646352048388,0.003,42470.0,42464.0,0.16245192]
[1646352048787,0.003,42470.0,42465.0,0.20465171]
[1646352049087,0.00302786,42473.0,42465.0,0.20465171]
[1646352049288,0.309813,42472.0,42465.0,0.20465171]
[1646352050088,0.00302786,42473.0,42465.0,0.20465171]
[1646352050488,0.309813,42472.0,42465.0,0.20465171]
[1646352051540,0.31132693,42472.0,42465.0,0.20465171]
[1646352052541,0.31284086,42472.0,42465.0,0.20465171]
[1646352053739,0.31435479,42472.0,42465.0,0.20465171]
[1646352054789,0.31586872,42472.0,42465.0,0.20465171]
[1646352055190,0.3,42471.0,42464.0,0.16245192]
[1646352055392,0.309813,42470.0,42464.0,0.16245192]
[1646352055589,0.4787903,42470.0,42464.0,0.16245192]
[1646352055788,0.31132693,42470.0,42464.0,0.16245192]
[1646352056188,0.21673414,42465.0,42464.0,0.16245192]
[1646352056589,0.52654714,42465.0,42464.0,0.16245192]
[1646352056788,0.52806107,42465.0,42464.0,0.16245192]
[1646352056989,0.21824807,42465.0,42464.0,0.16245192]
[1646352057589,0.52806107,42465.0,42464.0,0.16245192]
[1646352057792,0.532575,42465.0,42464.0,0.16245192]
[1646352058442,0.31584086,42465.0,42464.0,0.16245192]
[1646352058844,0.00754179,42465.0,42464.0,0.16245192]
[1646352059047,0.00454179,42465.0,42464.0,0.16245192]
[1646352059244,0.31435479,42465.0,42464.0,0.16245192]
[1646352059445,0.00454179,42465.0,42464.0,0.16245192]
[1646352059645,0.31435479,42465.0,42464.0,0.16245192]
[1646352059846,0.31986872,42465.0,42464.0,0.16245192]
[1646352060247,0.41986872,42465.0,42464.0,0.16245192]
[1646352060550,0.31986872,42465.0,42464.0,0.16245192]
[1646352060752,0.01005572,42465.0,42464.0,0.42932705]
[1646352060946,0.01156965,42465.0,42464.0,0.42432705]
[1646352061149,0.00151393,42470.0,42465.0,0.95]
[1646352061350,0.00151393,42470.0,42465.0,1.008911]
[1646352061547,0.00151393,42470.0,42467.0,0.18746863]
[1646352061987,0.00302786,42470.0,42467.0,0.18746863]
[1646352062890,0.00454179,42470.0,42467.0,0.18746863]
[1646352063288,0.00454179,42470.0,42469.0,0.10363671]
[1646352063888,0.00605572,42470.0,42469.0,0.10363671]
[1646352064988,0.00756965,42470.0,42469.0,0.10363671]
[1646352065389,0.00605572,42470.0,42469.0,0.10363671]
[1646352066341,0.00756965,42470.0,42464.0,0.42432705]
[1646352066539,0.00605572,42470.0,42464.0,0.42432705]
[1646352066738,0.00605572,42470.0,42465.0,0.359193]
[1646352067138,0.00605572,42470.0,42464.0,0.42432705]
[1646352067539,0.00756965,42470.0,42464.0,0.42432705]
[1646352067742,0.00756965,42470.0,42464.0,0.44786705]
[1646352067941,0.00856965,42470.0,42464.0,0.44786705]
[1646352068142,0.00856965,42470.0,42465.0,0.359193]
[1646352068340,0.00856965,42470.0,42464.0,0.42432705]
[1646352068541,0.01008358,42470.0,42464.0,0.44786705]
[1646352068740,0.01008358,42470.0,42466.0,0.17460188]
[1646352069143,0.00908358,42470.0,42466.0,0.17460188]
[1646352069789,0.01008358,42470.0,42466.0,0.17460188]
[1646352070587,0.01159751,42470.0,42466.0,0.17460188]
[1646352071087,0.01059751,42470.0,42466.0,0.17460188]
[1646352071788,0.01159751,42470.0,42466.0,0.17460188]
[1646352072388,0.01159751,42470.0,42464.0,0.42432705]
[1646352072989,0.01159751,42470.0,42464.0,0.15736353]
[1646352073239,0.18092387,42470.0,42464.0,0.15736353]
[1646352073443,0.01059751,42470.0,42464.0,0.15736353]
[1646352073640,0.309813,42469.0,42464.0,0.15736353]
[1646352073842,0.3,42468.0,42464.0,0.15736353]
[1646352074041,0.22788602,42466.0,42464.0,0.15736353]
[1646352074239,0.609813,42465.0,42464.0,0.15736353]
[1646352074440,0.309813,42465.0,42464.0,0.15736353]
[1646352075442,0.609813,42465.0,42464.0,0.15736353]
[1646352075641,0.61132693,42465.0,42464.0,0.15736353]
[1646352075843,0.41432693,42465.0,42464.0,0.15736353]
[1646352076344,0.61713877,42465.0,42464.0,0.15736353]
[1646352077190,0.61413877,42465.0,42464.0,0.1558496]
[1646352077989,0.61813877,42465.0,42464.0,0.1558496]
[1646352079191,0.41532693,42465.0,42464.0,0.1558496]
[1646352079893,0.71132693,42465.0,42464.0,0.1558496]
[1646352080637,0.86779166,42465.0,42464.0,0.1558496]
[1646352081238,1.02381688,42465.0,42464.0,0.1558496]
[1646352081838,1.02681688,42465.0,42464.0,0.1558496]
[1646352082240,1.02681688,42465.0,42464.0,0.15584582]
[1646352082843,0.87079166,42465.0,42464.0,0.15584582]
[1646352083244,0.86779166,42465.0,42464.0,0.15584582]
[1646352083742,1.04326844,42465.0,42464.0,0.15584582]
[1646352083947,1.04726844,42465.0,42464.0,0.15584582]
[1646352084595,1.09446844,42465.0,42464.0,0.15584582]
[1646352085793,1.09046844,42465.0,42464.0,0.15584582]
[1646352087896,1.09546844,42465.0,42464.0,0.15584582]
[1646352088145,1.81136844,42465.0,42464.0,0.15584582]
[1646352088444,1.09546844,42465.0,42464.0,0.15584582]
[1646352089145,1.09046844,42465.0,42464.0,0.15584582]
[1646352090145,0.91499166,42465.0,42464.0,0.15584582]
[1646352090944,0.61499166,42465.0,42464.0,0.15584582]
[1646352091146,0.46779166,42465.0,42464.0,0.15584582]
[1646352091346,0.31132693,42465.0,42464.0,0.15584582]
[1646352092006,0.31532693,42465.0,42464.0,0.15584582]
[1646352092606,0.00151393,42468.0,42465.0,0.95]
[1646352092809,0.00151393,42468.0,42467.0,0.32354]
[1646352093006,0.01059751,42470.0,42467.0,0.52074]
[1646352093207,9.751e-05,42470.0,42469.0,0.32354]
[1646352093408,9.751e-05,42470.0,42469.0,0.37074]
[1646352093609,9.751e-05,42470.0,42469.0,0.9525437]
[1646352094007,9.751e-05,42470.0,42469.0,1.3177237]
[1646352094209,0.15646473,42491.0,42470.0,0.01716423]
[1646352094415,0.15646473,42491.0,42484.0,0.27101488]
[1646352094608,0.15646473,42491.0,42484.0,0.26601488]
[1646352094808,0.20411843,42492.0,42484.0,0.26601488]
[1646352095011,0.19901172,42495.0,42484.0,0.26601488]
[1646352095210,0.20374114,42493.0,42484.0,0.26601488]
[1646352095645,0.41048332,42493.0,42484.0,0.26601488]
[1646352095842,0.04438,42489.0,42484.0,0.26601488]
[1646352096047,0.04438,42489.0,42476.0,0.4843]
[1646352096242,0.04438,42489.0,42475.0,0.1972]
[1646352096949,0.04438,42489.0,42486.0,0.25916352]
[1646352097144,0.04038,42489.0,42486.0,0.25916352]
[1646352097345,0.04038,42489.0,42480.0,0.18740744]
[1646352097946,0.04038,42489.0,42481.0,0.3]
[1646352098945,0.04038,42489.0,42482.0,0.15]
[1646352099146,0.04038,42489.0,42482.0,0.40857282]
[1646352099399,0.04038,42489.0,42483.0,0.02354]
[1646352101096,0.04038,42489.0,42487.0,0.13993179]
[1646352101299,0.04038,42489.0,42488.0,0.13993179]
[1646352101801,0.04038,42489.0,42487.0,0.19390386]
[1646352102599,0.04038,42489.0,42488.0,0.3]
[1646352102800,0.04038,42489.0,42488.0,0.16347179]
[1646352103344,0.04038,42489.0,42488.0,0.31347179]
[1646352103946,0.04038,42489.0,42488.0,0.61347179]
[1646352104248,0.01175,42505.0,42488.0,0.57712303]
[1646352104449,0.01175,42505.0,42488.0,0.52074]
[1646352104647,0.20472761,42504.0,42502.0,0.28262469]
[1646352104852,0.11175,42506.0,42491.0,0.02354]
[1646352105045,0.19363024,42503.0,42491.0,0.02354]
[1646352105247,0.19363024,42503.0,42490.0,0.02354]
[1646352105648,0.19363024,42503.0,42494.0,0.21963472]
[1646352105847,0.19363024,42503.0,42498.0,0.25461875]
[1646352106047,0.19363024,42503.0,42494.0,0.21963472]
[1646352106448,0.19363024,42503.0,42489.0,0.6296]
[1646352107093,0.19363024,42503.0,42496.0,0.28287271]
[1646352107895,0.19563024,42503.0,42496.0,0.28287271]
[1646352108495,0.25333895,42500.0,42496.0,0.28287271]
[1646352108694,0.19563024,42503.0,42491.0,0.301]
[1646352108695,0.1,42502.0,42492.0,0.02354]
[1646352108896,0.1,42502.0,42491.0,0.301]
[1646352109097,0.1,42502.0,42491.0,0.3]
[1646352109696,0.1,42502.0,42495.0,0.20680665]
[1646352109697,0.20462793,42500.0,42495.0,0.20680665]
[1646352110101,0.1,42502.0,42491.0,0.3]
[1646352110297,0.19363024,42503.0,42491.0,0.3]
[1646352111146,0.25090714,42499.0,42491.0,0.3]
[1646352111744,0.1,42502.0,42491.0,0.3]
[1646352111943,0.1,42502.0,42491.0,0.304]
[1646352112147,0.30138667,42502.0,42491.0,0.004]
[1646352112347,0.0472,42501.0,42491.0,0.004]
[1646352112546,0.16584904,42500.0,42491.0,0.004]
[1646352112753,0.26482466,42493.0,42491.0,0.004]
[1646352113245,0.36482466,42493.0,42484.0,0.18275864]
[1646352113645,0.52041607,42493.0,42484.0,0.18275864]
[1646352114044,0.52741607,42493.0,42485.0,0.25175759]
[1646352114510,0.37182466,42493.0,42485.0,0.25175759]
[1646352115104,0.1,42493.0,42485.0,0.25175759]
[1646352115313,0.15602522,42494.0,42485.0,0.25175759]
[1646352116208,0.24872985,42493.0,42485.0,0.25119759]
[1646352116607,0.34872985,42493.0,42485.0,0.25119759]
[1646352116807,0.34872985,42493.0,42482.0,0.600368]
[1646352117007,0.34872985,42493.0,42482.0,0.117768]
[1646352117209,0.34872985,42493.0,42479.0,0.3]
[1646352117607,0.34872985,42493.0,42479.0,0.49831121]
[1646352117910,0.34872985,42493.0,42484.0,0.2614086]
[1646352118339,0.34872985,42493.0,42479.0,0.49831121]
[1646352119841,0.15547474,42489.0,42484.0,0.2236025]
[1646352120243,0.1,42492.0,42484.0,0.2236025]
[1646352120445,0.1,42492.0,42486.0,0.17082448]
[1646352121241,0.24872985,42493.0,42486.0,0.17082448]
[1646352121441,0.1,42494.0,42486.0,0.17082448]
[1646352121641,0.05889248,42495.0,42486.0,0.17082448]
[1646352121907,0.01175,42497.0,42487.0,0.65918]
[1646352122104,0.002,42498.0,42487.0,0.65918]
[1646352122105,0.002,42498.0,42493.0,0.16770796]
[1646352122502,0.002,42498.0,42497.0,0.26599584]
[1646352123305,0.19163489,42501.0,42497.0,0.26599584]
[1646352123705,0.19163489,42501.0,42488.0,0.058876]
[1646352123908,0.19163489,42501.0,42489.0,0.117745]
[1646352124203,0.29163489,42501.0,42490.0,0.3]
[1646352124402,0.19163489,42501.0,42490.0,0.3]
[1646352124603,0.24008498,42499.0,42495.0,0.27434515]
[1646352125005,0.29163489,42501.0,42495.0,0.27434515]
[1646352125403,0.1,42501.0,42495.0,0.27434515]
[1646352125843,0.15452254,42502.0,42495.0,0.27434515]
[1646352126042,0.15452254,42502.0,42490.0,0.3]
[1646352126043,0.21119851,42500.0,42490.0,0.3]
[1646352126846,0.270084,42500.0,42490.0,0.3]
[1646352127145,0.270084,42500.0,42493.0,0.25482816]
[1646352127346,0.21119851,42500.0,42493.0,0.25482816]
[1646352127948,0.21219851,42500.0,42493.0,0.25482816]
[1646352129050,0.21219851,42500.0,42489.0,0.19507692]
[1646352129250,0.16134237,42499.0,42489.0,0.19507692]
[1646352129492,0.21119851,42500.0,42489.0,0.19507692]
[1646352130089,0.001,42499.0,42492.0,0.27442279]
[1646352131294,0.4,42501.0,42492.0,0.27442279]
[1646352131993,0.402,42501.0,42492.0,0.27442279]
[1646352132194,0.21680213,42500.0,42492.0,0.27442279]
[1646352133940,0.59502352,42501.0,42492.0,0.27542279]
[1646352134639,0.05888497,42497.0,42492.0,0.27542279]
[1646352135240,0.05888497,42497.0,42492.0,0.27442279]
[1646352135442,0.1,42501.0,42492.0,0.27442279]
[1646352135640,0.15452254,42502.0,42492.0,0.27442279]
[1646352136041,0.28867676,42500.0,42492.0,0.27542279]
[1646352136442,0.57788605,42501.0,42492.0,0.27542279]
[1646352136640,0.57288605,42501.0,42492.0,0.27542279]
[1646352136894,0.395,42501.0,42492.0,0.33430079]
[1646352137295,0.1,42501.0,42492.0,0.33330079]
[1646352137695,0.1,42501.0,42492.0,0.35684079]
[1646352138097,0.1,42501.0,42492.0,0.33430079]
[1646352138296,0.05888256,42500.0,42492.0,0.35784079]
[1646352138698,0.34806785,42500.0,42492.0,0.33430079]
[1646352139399,0.34806785,42500.0,42492.0,0.33330079]
[1646352139599,0.18852028,42499.0,42492.0,0.33330079]
[1646352139800,0.34806785,42500.0,42492.0,0.33330079]
[1646352139998,0.35006785,42500.0,42492.0,0.33330079]
[1646352141046,0.20761479,42499.0,42492.0,0.33330079]
[1646352141244,0.35006785,42500.0,42492.0,0.33330079]
[1646352141643,0.34806785,42500.0,42492.0,0.33330079]
[1646352142044,0.35006785,42500.0,42492.0,0.33330079]
[1646352142443,0.06088256,42500.0,42492.0,0.33330079]
[1646352142644,0.002,42500.0,42492.0,0.33330079]
[1646352143247,0.17269398,42509.0,42495.0,0.02354]
[1646352143445,0.16094398,42509.0,42497.0,0.20497392]
[1646352143649,0.16094398,42509.0,42505.0,0.22433655]
[1646352144245,0.05886716,42508.0,42505.0,0.22433655]
[1646352144707,0.05886716,42508.0,42500.0,0.26078235]
[1646352145106,0.05886716,42508.0,42505.0,0.058869]
[1646352146408,0.05886716,42508.0,42506.0,0.24797878]
[1646352146708,0.0432,42509.0,42506.0,0.24797878]
[1646352147406,0.0432,42509.0,42507.0,0.35918]
[1646352147607,0.24126484,42519.0,42509.0,0.95]
[1646352147807,0.24126484,42519.0,42510.0,0.05885]
[1646352147808,0.12536484,42519.0,42510.0,0.05885]
[1646352148008,0.19392748,42521.0,42510.0,0.05885]
[1646352148649,0.49392748,42521.0,42510.0,0.05885]
[1646352148852,0.1,42520.0,42518.0,0.2579381]
[1646352149050,0.05884759,42522.0,42510.0,0.05885]
[1646352149451,0.05884759,42522.0,42510.0,0.08239]
[1646352149652,0.01175,42524.0,42514.0,0.058845]
[1646352149853,0.54326484,42527.0,42516.0,0.05884]
[1646352149854,0.24326484,42527.0,42516.0,0.05884]
[1646352150056,0.12536484,42529.0,42523.0,0.16992891]
[1646352150253,0.01175,42530.0,42523.0,0.16992891]
[1646352150456,0.01175,42535.0,42523.0,0.16992891]
[1646352150653,0.15208019,42536.0,42523.0,0.16992891]
[1646352150654,0.35883296,42536.0,42524.0,0.058833]
[1646352150852,0.3,42535.0,42524.0,0.058833]
[1646352151054,0.05883296,42536.0,42524.0,0.058833]
[1646352151253,0.05883296,42536.0,42529.0,0.24876526]
[1646352151254,0.20543858,42533.0,42529.0,0.24876526]
[1646352151458,0.05883296,42536.0,42529.0,0.24876526]
[1646352151654,0.19620856,42535.0,42529.0,0.24876526]
[1646352152211,0.05883296,42536.0,42529.0,0.30760126]
[1646352152212,0.004,42536.0,42529.0,0.30760126]
[1646352153205,0.004,42536.0,42532.0,0.21089667]
[1646352153807,0.014,42539.0,42532.0,0.26972267]
[1646352154009,0.014,42539.0,42534.0,0.058826]
[1646352154305,0.05882786,42540.0,42534.0,0.058826]
[1646352155104,0.05882786,42540.0,42538.0,0.23919141]
[1646352155958,0.28931512,42546.0,42539.0,0.95]
[1646352156161,0.27756512,42546.0,42539.0,1.126422]
[1646352156359,0.11805395,42550.0,42539.0,1.126422]
[1646352156563,0.00035395,42550.0,42546.0,0.25119274]
[1646352156757,0.00035395,42550.0,42539.0,1.126422]
[1646352156957,0.21008645,42546.0,42539.0,1.126422]
[1646352157360,0.21008645,42546.0,42539.0,0.176422]
[1646352157560,0.05882404,42545.0,42539.0,0.176422]
[1646352157759,0.21008645,42546.0,42539.0,0.176422]
[1646352157760,0.27279335,42543.0,42539.0,0.176422]
[1646352158158,0.27279335,42543.0,42539.0,0.177422]
[1646352158559,0.21008645,42546.0,42539.0,0.177422]
[1646352158760,0.3,42545.0,42539.0,0.177422]
[1646352159396,0.3,42545.0,42539.0,0.176422]
[1646352159595,0.28884438,42543.0,42539.0,0.176422]
[1646352159797,0.3,42542.0,42531.0,0.304659]
[1646352159996,0.3,42542.0,42536.0,0.058829]
[1646352160197,0.28884438,42543.0,42536.0,0.058829]
[1646352161398,0.34767375,42543.0,42536.0,0.058829]
[1646352161597,0.28884438,42543.0,42536.0,0.058829]
[1646352161802,0.3,42542.0,42536.0,0.058829]
[1646352161998,0.3,42542.0,42527.0,0.27420838]
[1646352161999,0.3472,42542.0,42527.0,0.27420838]
[1646352162198,0.4472,42542.0,42531.0,0.001]
[1646352162397,0.50602722,42542.0,42531.0,0.001]
[1646352162798,0.21264969,42535.0,42531.0,0.001]
[1646352163246,0.3,42537.0,42531.0,0.001]
[1646352163444,0.3,42537.0,42528.0,0.058841]
[1646352163643,0.05883765,42536.0,42528.0,0.058841]
[1646352164449,0.1,42537.0,42528.0,0.058841]
[1646352164644,0.1,42537.0,42532.0,0.21090859]
[1646352164845,0.17831826,42539.0,42533.0,0.05883]
[1646352165344,0.01175,42543.0,42533.0,0.05883]
[1646352165545,0.15882793,42545.0,42537.0,0.24939151]
[1646352165746,0.1,42546.0,42537.0,0.24939151]
[1646352165944,0.1,42546.0,42539.0,0.058822]
[1646352166243,0.19091589,42545.0,42539.0,0.058822]
[1646352166644,0.19091589,42545.0,42544.0,0.21214034]
[1646352166645,0.1,42545.0,42544.0,0.21214034]
[1646352166901,0.1,42545.0,42539.0,0.058822]
[1646352167502,0.00035395,42550.0,42540.0,0.3]
[1646352167701,0.00035395,42550.0,42546.0,0.19344148]
[1646352167896,0.00035395,42550.0,42546.0,0.25224448]
[1646352168295,0.00035395,42550.0,42546.0,0.058803]
[1646352168496,0.00035395,42550.0,42546.0,0.093173]
[1646352168898,0.00035395,42550.0,42546.0,0.151977]
[1646352169105,0.95,42549.0,42533.0,0.31565505]
[1646352169300,0.95,42549.0,42512.0,0.4644]
[1646352169301,0.15,42536.0,42512.0,0.4644]
[1646352169505,0.9869,42548.0,42516.0,0.5]
[1646352169506,0.5897,42533.0,42516.0,0.5]
[1646352169706,0.36114756,42535.0,42517.0,0.7056]
[1646352169707,0.3472,42532.0,42517.0,0.7056]
[1646352169897,0.5897,42518.0,42508.0,0.48591516]
[1646352170099,0.17354,42529.0,42512.0,0.01949337]
[1646352170100,0.3472,42517.0,42512.0,0.01949337]
[1646352170300,0.058865,42516.0,42512.0,0.01949337]
[1646352170501,0.5897,42513.0,42511.0,0.003]
[1646352170753,0.3472,42515.0,42511.0,0.003]
[1646352170754,0.6369,42512.0,42511.0,0.003]
[1646352171152,0.9369,42512.0,42511.0,0.003]
[1646352171353,0.6369,42512.0,42511.0,0.003]
[1646352171552,0.0588695,42507.0,42502.0,0.1941875]
[1646352171752,0.0472,42506.0,42502.0,0.1941875]
[1646352171955,0.3,42505.0,42496.0,0.0022]
[1646352172153,0.0472,42504.0,42502.0,0.003]
[1646352172953,0.0472,42504.0,42502.0,0.21784641]
[1646352173354,0.0472,42504.0,42502.0,0.21484641]
[1646352173954,0.0472,42504.0,42496.0,0.0022]
[1646352174157,0.0502,42504.0,42496.0,0.0022]
[1646352174396,0.0502,42504.0,42496.0,0.27114371]
[1646352174702,0.05888129,42502.0,42496.0,0.27114371]
[1646352174899,0.0472,42501.0,42496.0,0.27114371]
[1646352175095,0.3472,42501.0,42498.0,0.15585685]
[1646352175295,0.05888129,42502.0,42501.0,0.47378369]
[1646352176300,0.35888129,42502.0,42501.0,0.47378369]
[1646352177598,0.40608129,42502.0,42501.0,0.47378369]
[1646352178246,0.41108129,42502.0,42501.0,0.47378369]
[1646352179142,0.36388129,42502.0,42501.0,0.47378369]
[1646352179343,0.06388129,42502.0,42501.0,0.47378369]
[1646352179548,0.0472,42506.0,42502.0,1.0]
[1646352179747,0.49957251,42528.0,42503.0,0.02354]
[1646352179748,0.3,42527.0,42503.0,0.02354]
[1646352179949,0.15,42535.0,42502.0,1.0]
[1646352179950,0.0472,42524.0,42502.0,1.0]
[1646352180145,0.05885294,42521.0,42515.0,0.21738122]
[1646352180344,0.05885294,42521.0,42514.0,0.27925556]
[1646352180745,0.05885294,42521.0,42505.0,0.058858]
[1646352180949,0.05885294,42521.0,42505.0,0.082398]
[1646352181146,0.05878932,42521.0,42506.0,0.117691]
[1646352181347,0.05878932,42521.0,42505.0,0.058858]
[1646352181549,0.05878932,42521.0,42503.0,0.4766]
[1646352181550,0.02354,42505.0,42496.0,0.0022]
[1646352181751,0.082427,42502.0,42496.0,0.0022]
[1646352181997,0.3472,42501.0,42496.0,0.0022]
[1646352182195,0.3472,42501.0,42497.0,0.20467489]
[1646352182196,0.0472,42501.0,42497.0,0.20467489]
[1646352182397,0.0472,42501.0,42496.0,0.0022]
[1646352182603,0.003,42505.0,42496.0,0.0022]
[1646352182798,0.003,42505.0,42500.0,0.21074118]
[1646352183594,0.4,42510.0,42500.0,0.41253218]
[1646352183796,0.0472,42505.0,42500.0,0.41253218]
[1646352183996,0.0472,42505.0,42504.0,0.21381509]
[1646352184200,0.235945,42516.0,42504.0,0.21381509]
[1646352184201,0.3,42518.0,42504.0,0.21381509]
[1646352184402,0.3,42521.0,42507.0,0.058855]
[1646352184800,0.11771346,42523.0,42507.0,0.058855]
[1646352184998,0.11771346,42523.0,42514.0,0.25483322]
[1646352185666,0.058859,42522.0,42514.0,0.25483322]
[1646352186063,0.053859,42522.0,42514.0,0.25483322]
[1646352186362,0.05885503,42520.0,42514.0,0.25483322]
[1646352186563,0.05885503,42520.0,42510.0,0.21916814]
[1646352186963,0.05885503,42520.0,42512.0,0.15604089]
[1646352187166,0.05885503,42520.0,42510.0,0.21916814]
[1646352187767,0.08239503,42520.0,42501.0,0.3]
[1646352187969,0.25805208,42521.0,42500.0,0.4955]
[1646352187970,0.05886717,42511.0,42500.0,0.4955]
[1646352188171,0.05886717,42511.0,42495.0,0.3011]
[1646352188172,0.082417,42509.0,42496.0,0.0022]
[1646352188365,0.02354,42507.0,42496.0,0.0022]
[1646352188565,0.02354,42505.0,42496.0,0.0022]
[1646352188764,0.02354,42503.0,42496.0,0.2377911]